Cogmind - Beta 15 @@@ ROGUE MODE // 2025.09.19 @ 07:55:50 Player: GermanMO Result: Destroyed by L-31 Rogue with Katana Performance ------------- Evolutions (1) 500 Regions Visited (6) 1200 Robots Destroyed (23) 115 Value Destroyed (423) 423 Prototype IDs (1) 20 Alien Tech Used (0) 0 Bonus (39) 39 TOTAL SCORE: 2297 Bonus ------- Follower Combat Kills 39 Cogmind --------- Core Integrity 0/400 Matter 260/300 Energy 84/100 System Corruption 2% Temperature Cool (0) Movement Core (50) Location -8/Mines Parts ------- > --- POWER (2) -------- (None) > --- PROPULSION (3) --- (None) > --- UTILITY (2) ------ Terrain Scan Processor > --- WEAPON (2) ------- Light Assault Rifle > --- INVENTORY (5) ---- (None) Peak State ------------ > --- POWER ------------ Light Ion Engine Heavy Ion Engine > --- PROPULSION ------- Light Treads Aluminum Leg Aluminum Leg > --- UTILITY ---------- Makeshift Sensor Array Seismic Detector > --- WEAPON ----------- Light Assault Rifle Heavy Assault Rifle > --- INVENTORY -------- (None) [Rating: 18] Favorites ----------- Power Ion Engine Engine Ion Engine Power Core Light Nuclear Core Propulsion Light Treads Treads Light Treads Leg Aluminum Leg Utility Seismic Detector Device Seismic Detector Processor Terrain Scan Processor Weapon Medium Laser Energy Gun Medium Laser Ballistic Gun Light Assault Rifle Ballistic Cannon Slug Cannon Launcher Shock Bomb Launcher Build | -11 -10 -10 -9 -9 -9 -8 ------- Run | Yrd Mat Min Mat Min Exi Min Slots Evolved 2 | . . . 2 . . . Power 1 | . . . 1 . . . Propulsion 1 | . . . 1 . . . Utility . | . . . . . . . Weapon . | . . . . . . . Parts Attached 22 | 3 3 2 8 2 . 4 Power 5 | . 1 . 3 1 . . Engine 4 | . 1 . 2 1 . . Core 1 | . . . 1 . . . Reactor . | . . . . . . . Propulsion 5 | . 2 . 2 1 . . Treads 2 | . 2 . . . . . Leg 3 | . . . 2 1 . . Wheel . | . . . . . . . Hover . | . . . . . . . Flight . | . . . . . . . Utility 4 | 1 . 1 1 . . 1 Device 3 | 1 . 1 1 . . . Storage . | . . . . . . . Processor 1 | . . . . . . 1 Hackware . | . . . . . . . Protection . | . . . . . . . Artifact . | . . . . . . . Weapon 8 | 2 . 1 2 . . 3 Energy Gun 2 | 2 . . . . . . Energy Cannon . | . . . . . . . Ballistic Gun 4 | . . . 2 . . 2 Ballistic Cannon 1 | . . 1 . . . . Launcher 1 | . . . . . . 1 Special Weapon . | . . . . . . . Impact Weapon . | . . . . . . . Slashing Weapon . | . . . . . . . Piercing Weapon . | . . . . . . . Special Melee Weapon . | . . . . . . . Unidentified Prototypes 1 | . . . 1 . . . Parts Lost 18 | . . 1 5 7 . 5 Power 4 | . . . 2 2 . . Propulsion 5 | . . . 1 3 . 1 Utility 3 | . . . 1 1 . 1 Weapon 6 | . . 1 1 1 . 3 Highest Loss Streak 7 | . . 1 2 7 . 3 To Critical Strikes . | . . . . . . . Average Backups 1 | 2 2 1 . . . 1 Power . | . . . . . . . Propulsion . | 1 1 . . . . . Utility . | . 1 . . . . . Weapon . | . . . . . . . Tool/Special . | . . . . . . . Unused Backups . | . . . . . . . Power . | . . . . . . . Propulsion . | . . . . . . . Utility . | . . . . . . . Weapon . | . . . . . . . Tool/Special . | . . . . . . . Average Slot Usage (%) 60 | . 46 66 72 81 33 21 Engine 7 | . 7 10 6 12 . . Treads 13 | . 11 19 13 8 . . Leg 6 | . . . 16 19 11 4 Device 17 | . 14 21 18 20 11 5 Energy Gun 4 | . 14 8 . . . . Ballistic Gun 7 | . . . 13 20 11 11 Ballistic Cannon 3 | . . 5 3 . . . Peak Build Rating 18 | 5 7 11 18 16 10 10 Average Rating 8 | 1 5 7 11 14 10 5 On Entrance 8 | . 4 7 11 15 10 10 Naked Turns . | . . . . . . . Heaviest Build 16 | 3 8 14 14 16 8 8 Greatest Support 40 | 3 40 40 40 20 10 10 Greatest Overweight (x) 2 | . . . . 2 . 1 Average Overweight (x) . | . . . . . . . Largest Inventory Capacity 5 | 5 5 5 5 5 5 5 Average Capacity 5 | 5 5 5 5 5 5 5 Most Carried 5 | 5 4 5 1 1 . 3 Average Carried 1 | 3 2 1 . . . 1 Final Capacity 5 | 5 5 5 5 5 5 5 Final Carried 4 | 4 1 . . . . . Class Distribution -------------------- 77% | Mutant 22% | Scavenger-Mutant Dominant Class ---------------- Mutant | -10/Materials Mutant | -10/Mines Scavenger-Mutant | -9/Materials Scavenger-Mutant | -9/Mines Mutant | -9/Exiles Mutant | -8/Mines Resources | -11 -10 -10 -9 -9 -9 -8 ----------- Run | Yrd Mat Min Mat Min Exi Min Matter Collected 673 | 167 63 99 226 75 . 43 Remotely . | . . . . . . . Salvage Created 458 | 88 . 85 180 51 . 54 Parts 40 | 9 . 6 14 5 . 6 Haulers Intercepted . | . . . . . . . Recyclers Shooed . | . . . . . . . Parts Field Recycled . | . . . . . . . Retrieved Matter . | . . . . . . . Parts Self-Destructed . | . . . . . . . Prevented . | . . . . . . . Kills | -11 -10 -10 -9 -9 -9 -8 ------- Run | Yrd Mat Min Mat Min Exi Min Combat Hostiles Destroyed 16 | . . 3 8 1 . 4 Guns 7 | . . 1 1 1 . 4 Cannons 9 | . . 2 7 . . . Classes Destroyed 8 | 2 . 3 2 1 . . Worker 1 | . . . . 1 . . Builder 1 | . . 1 . . . . Tunneler 2 | 2 . . . . . . Recycler 2 | 1 . . 1 . . . Watcher 1 | . . . 1 . . . Swarmer 9 | . . 1 4 . . 4 Grunt 6 | . . 2 3 1 . . Sentry 1 | . . . 1 . . . Best Kill Streak 3 | 3 . 1 3 1 . 2 Combat Bots Only 3 | . . 1 3 1 . 2 Max Kills in Single Turn 1 | 1 . 1 1 1 . 1 Gunslinging . | . . . . . . . Exploded . | . . . . . . . Melee . | . . . . . . . Uniques/NPCs Destroyed . | . . . . . . . Combat | -11 -10 -10 -9 -9 -9 -8 -------- Run | Yrd Mat Min Mat Min Exi Min Hostile Shots Fired 195 | . 28 18 74 7 . 68 Missed 46 | . 10 4 20 . . 12 Hits 149 | . 18 14 54 7 . 56 Melee 4 | . . . . . . 4 Projectile 145 | . 18 14 54 7 . 52 AOE 6 | . . . . 6 . . Critical Strikes 1 | . . . 1 . . . Damage Taken 1768 | . 152 155 607 328 . 526 Core 512 | . 10 89 80 26 . 307 Absorbed by Shields . | . . . . . . . Core Remaining (%) 80 | 100 . 60 . . . . Volleys Fired 128 | 9 11 19 44 7 . 38 Largest 2 | 2 1 1 2 2 . 2 Hottest 90 | 90 50 50 43 43 . 40 Shots Fired 149 | 18 11 19 47 14 . 40 Gun 108 | 18 11 15 10 14 . 40 Cannon 41 | . . 4 37 . . . Launcher . | . . . . . . . Special . | . . . . . . . Kinetic 105 | . . 4 47 14 . 40 Thermal 44 | 18 11 15 . . . . Explosive . | . . . . . . . Electromagnetic . | . . . . . . . Robot Hit Streak 13 | 12 13 6 9 2 . 3 Robot Miss Streak 6 | 2 3 2 6 3 . 4 Penetration Max . | . . . . . . . Secondary Targets 1 | . . . . 1 . . Max Gunslinging Chain 1 | . . . . 1 . . Shots Hit Robots 82 | 13 5 14 26 6 . 18 Core Hits 34 | 4 1 6 13 4 . 6 Critical Kills . | . . . . . . . Critical Parts Destroyed 3 | . . . 3 . . . Critical Strikes 4 | 1 . . 3 . . . Burn 1 | 1 . . . . . . Destroy 3 | . . . 3 . . . Melee Attacks . | . . . . . . . Impact . | . . . . . . . Slashing . | . . . . . . . Piercing . | . . . . . . . Sneak Attacks . | . . . . . . . Combat Hostiles . | . . . . . . . Follow-up Attacks . | . . . . . . . Damage Inflicted 1329 | 153 63 220 641 81 . 171 Guns 662 | 153 63 137 65 79 . 165 Cannons 656 | . . 80 576 . . . Explosions . | . . . . . . . Melee . | . . . . . . . Ramming 11 | . . 3 . 2 . 6 Kinetic 965 | . . 80 641 79 . 165 Thermal 353 | 153 63 137 . . . . Explosive . | . . . . . . . Electromagnetic . | . . . . . . . Impact . | . . . . . . . Slashing . | . . . . . . . Piercing . | . . . . . . . Highest Corruption 2 | . . . 2 2 2 2 Average Corruption 2 | . . . 2 2 2 2 Corruption Purged . | . . . . . . . Corruption Blocked . | . . . . . . . Effects 9 | . . . 1 4 . 4 Message Errors 2 | . . . . 1 . 1 Matter Fused 3 | . . . . 2 . 1 Heat Flow Errors 1 | . . . . . . 1 Energy Discharges 2 | . . . . 1 . 1 Alerts 1 | . . . 1 . . . Overload Shots . | . . . . . . . Overflow Damage . | . . . . . . . Projectiles . | . . . . . . . Explosions . | . . . . . . . Melee . | . . . . . . . Knockbacks 3 | . . . 3 . . . Impact . | . . . . . . . Kinetic 3 | . . . 3 . . . Secondary . | . . . . . . . Self-Inflicted Damage 3 | . . . . . . 3 Shots . | . . . . . . . Rammed 1 | . . . . . . 1 Targets Rammed 3 | . . 1 . 1 . 1 Kicked 1 | . . . . 1 . . Crushed 1 | . . 1 . . . . Highest Temperature 113 | 90 90 50 33 12 . 113 Average Temperature 32 | 39 51 23 16 5 . 58 Received Heat Transfer 258 | . 36 33 177 12 . . Siege Activations . | . . . . . . . Martial Activations . | . . . . . . . Shielding Activations . | . . . . . . . Robots Disrupted . | . . . . . . . Combat Hostiles . | . . . . . . . Robots Corrupted . | . . . . . . . Combat Hostiles . | . . . . . . . Parts Fried . | . . . . . . . Impact Corruptions . | . . . . . . . Robots Melted . | . . . . . . . Combat Hostiles . | . . . . . . . Parts Melted 1 | . . 1 . . . . Heat Transferred 1087 | 495 185 407 . . . . Parts Sabotaged . | . . . . . . . Parts Stolen . | . . . . . . . Parts Stripped . | . . . . . . . Power Chain Reactions . | . . . . . . . Alert | -11 -10 -10 -9 -9 -9 -8 ------- Run | Yrd Mat Min Mat Min Exi Min Maximum Alert Level . | . . . . . . . Low Security (%) 100 | 100 100 100 100 100 . 100 Level 1 . | . . . . . . . Level 2 . | . . . . . . . Level 3 . | . . . . . . . Level 4 . | . . . . . . . Level 5 . | . . . . . . . High Security . | . . . . . . . Max Security . | . . . . . . . Peak Influence 170 | 15 3 68 107 42 . 170 Initial 3 | . 3 . . . . . Average 19 | 2 . 9 48 3 . 26 Influence Increases 707 | 15 . 134 231 47 . 280 Destroy 0b10 Robot/C 380 | . . 100 160 40 . 80 Destroy 0b10 Robot/NC 35 | 15 . 5 10 5 . . Destroy Leader 72 | . . 20 32 . . 20 Allied During Kill 13 | . . 8 3 2 . . Disable Machine 15 | . . . 15 . . . Destroy Structure 12 | . . 1 11 . . . Lose Combat Pursuer 180 | . . . . . . 180 Influence Decreases 557 | 10 5 134 231 47 . 130 Entered New Map 2 | . 2 . . . . . Time Decay 403 | 10 3 134 161 15 . 80 Lost Part 112 | . . . 50 12 . 50 Lost Ally 40 | . . . 20 20 . . Squads Dispatched 2 | . 1 . 1 . . . Investigation 1 | . . . 1 . . . Extermination . | . . . . . . . Reinforcement 1 | . 1 . . . . . Assault . | . . . . . . . Garrison . | . . . . . . . Intercept . | . . . . . . . Searches Triggered . | . . . . . . . Construction Impeded . | . . . . . . . Haulers Reinforced . | . . . . . . . Active Scanning Responses . | . . . . . . . Cargo Convoy Interrupts . | . . . . . . . Stealth | -11 -10 -10 -9 -9 -9 -8 --------- Run | Yrd Mat Min Mat Min Exi Min Distress Signals 2 | . . . 1 1 . . Communications Jammed . | . . . . . . . Distress Signals . | . . . . . . . Times Spotted 41 | . 8 5 10 5 . 13 Peak Tracking Total 8 | . 7 3 4 5 . 8 Tactical Retreats 4 | . . . . . . 4 Traps | -11 -10 -10 -9 -9 -9 -8 ------- Run | Yrd Mat Min Mat Min Exi Min Traps Triggered 1 | . . . 1 . . . Indirectly . | . . . . . . . Trap Hack Attempts . | . . . . . . . Triggered . | . . . . . . . Disarmed . | . . . . . . . Reprogrammed . | . . . . . . . Reused . | . . . . . . . Traps Extracted . | . . . . . . . Installed . | . . . . . . . Triggered . | . . . . . . . Machines | -11 -10 -10 -9 -9 -9 -8 ---------- Run | Yrd Mat Min Mat Min Exi Min Machines Disabled 1 | . . . 1 . . . Max in Single Turn 1 | . . . 1 . . . Machines Repaired . | . . . . . . . Machines Dismantled . | . . . . . . . Machines Sabotaged . | . . . . . . . Overloaded Fab Kills . | . . . . . . . Hacking | -11 -10 -10 -9 -9 -9 -8 --------- Run | Yrd Mat Min Mat Min Exi Min Machines Accessed . | . . . . . . . Terminals . | . . . . . . . Fabricators . | . . . . . . . Repair Stations . | . . . . . . . Recycling Units . | . . . . . . . Scanalyzers . | . . . . . . . Garrison Access . | . . . . . . . Total Hacks . | . . . . . . . Successful . | . . . . . . . Failed . | . . . . . . . Catastrophic . | . . . . . . . Database Lockouts . | . . . . . . . Manual . | . . . . . . . Terminals . | . . . . . . . Fabricators . | . . . . . . . Repair Stations . | . . . . . . . Recycling Units . | . . . . . . . Scanalyzers . | . . . . . . . Garrison Access . | . . . . . . . Terminal Hacks . | . . . . . . . Fabricator Hacks . | . . . . . . . Repair Station Hacks . | . . . . . . . Recycling Unit Hacks . | . . . . . . . Scanalyzer . | . . . . . . . Garrison Access Hacks . | . . . . . . . Unauthorized Hacks . | . . . . . . . Terminals . | . . . . . . . Fabricators . | . . . . . . . Repair Stations . | . . . . . . . Recycling Units . | . . . . . . . Scanalyzers . | . . . . . . . Garrison Access . | . . . . . . . Data Cores Recovered . | . . . . . . . Used . | . . . . . . . Hacking Detections . | . . . . . . . Full Trace Events . | . . . . . . . Feedback Events . | . . . . . . . Feedback Blocked . | . . . . . . . Robot Schematics Acquired . | . . . . . . . Robots Built . | . . . . . . . Authchips . | . . . . . . . Time . | . . . . . . . Total Robot Build Rating . | . . . . . . . Part Schematics Acquired . | . . . . . . . Parts Built . | . . . . . . . Authchips . | . . . . . . . Time . | . . . . . . . Total Part Build Rating . | . . . . . . . Parts Repaired . | . . . . . . . Time . | . . . . . . . Parts Recycled . | . . . . . . . Recycled Matter . | . . . . . . . Retrieved Matter . | . . . . . . . Retrieved Components . | . . . . . . . Parts Scanalyzed . | . . . . . . . Part Schematics Acquired . | . . . . . . . Parts Damaged . | . . . . . . . Bothacking | -11 -10 -10 -9 -9 -9 -8 ------------ Run | Yrd Mat Min Mat Min Exi Min Used RIF Installer . | . . . . . . . Robots Hacked . | . . . . . . . Non-combat . | . . . . . . . Combat . | . . . . . . . Robot Hacks Applied . | . . . . . . . Relay Couplers Released . | . . . . . . . Fabnet Peak Effective % . | . . . . . . . Robots Rewired . | . . . . . . . Allies Hacked . | . . . . . . . Hacks Repelled . | . . . . . . . Allies | -11 -10 -10 -9 -9 -9 -8 -------- Run | Yrd Mat Min Mat Min Exi Min Total Allies 3 | . . 2 . 1 . . Largest Group 2 | . . 2 1 1 . . Highest-Rated Group 49 | . . 49 18 31 . . Highest-Rated Ally 31 | . . 31 18 31 . . Total Orders . | . . . . . . . Ally Attacks 17 | . . 13 . 4 . . Total Damage 231 | . . 166 . 65 . . Kills 3 | . . 2 . 1 . . Allies Corrupted . | . . . . . . . Allies Melted . | . . . . . . . Intel | -11 -10 -10 -9 -9 -9 -8 ------- Run | Yrd Mat Min Mat Min Exi Min Active Infowar (turns) 1750 | 5 88 870 408 202 40 137 Sensors 533 | . . . 154 202 40 137 Terrain 997 | 5 88 870 34 . . . Seismic 1035 | . . 455 408 172 . . Robot Analysis Total . | . . . . . . . Derelict Logs Recovered 2 | . . 1 . 1 . . Drone Launches . | . . . . . . . Drone Recoveries . | . . . . . . . Exploration | -11 -10 -10 -9 -9 -9 -8 ------------- Run | Yrd Mat Min Mat Min Exi Min Turns Passed 1974 | 65 88 870 408 202 40 301 Spaces Moved 1206 | 54 98 392 207 120 34 301 Core 464 | 54 84 86 . 6 . 234 Treads 346 | . 14 306 26 . . . Legs 396 | . . . 181 114 34 67 Wheels . | . . . . . . . Hover . | . . . . . . . Flight . | . . . . . . . Fastest Speed 50 | 50 50 50 120 120 120 50 Average Speed 105 | 50 65 135 125 121 120 65 Slowest Speed 160 | 50 160 160 160 150 120 120 Overloaded Moves . | . . . . . . . Propulsion Burnouts . | . . . . . . . Robots Hopped . | . . . . . . . Potential Cave-ins . | . . . . . . . Cave-ins Triggered . | . . . . . . . Exploration Rate (%) 29 | 4 28 72 16 17 8 59 Regions Visited 6 Branch Regions 4 Pre-discovered Areas . | . . . . . . . Known Exits Taken 1 | . . 1 . . . . Unknown Exits Taken 5 | 1 1 . 1 1 1 . Scrap Searched 1 | . . . . . . 1 Spaces Dug . | . . . . . . . Terrain Destroyed 13 | . . 1 12 . . . Melee . | . . . . . . . Projectile 13 | . . 1 12 . . . AOE . | . . . . . . . Terrain Rammed . | . . . . . . . Walls Destroyed . | . . . . . . . Machines Disabled . | . . . . . . . Actions | -11 -10 -10 -9 -9 -9 -8 --------- Run | Yrd Mat Min Mat Min Exi Min Total 1774 | 73 111 711 311 163 33 372 Wait 391 | . . 291 44 32 . 24 Move 1200 | 53 97 391 206 119 33 301 Hop . | . . . . . . . Pick Up 22 | 7 . 1 8 2 . 4 Fast Attach . | . . . . . . . Attach 25 | 3 3 5 8 2 . 4 Detach 3 | . . 3 . . . . Swap . | . . . . . . . Drop 2 | 1 . . 1 . . . Fire 128 | 9 11 19 44 7 . 38 Melee . | . . . . . . . Ram 1 | . . . . . . 1 Kick 1 | . . . . 1 . . Crush 1 | . . 1 . . . . Escape Stasis . | . . . . . . . Rewire . | . . . . . . . Trap . | . . . . . . . Miscellaneous . | . . . . . . . Route ------- -11/Scrapyard -10/Materials -10/Mines -9/Materials -9/Mines (discovered 3 exits: *Mat x2 / [*Exi]) -9/Exiles -8/Mines History --------- Turn | Location | Event 4 | -11/Scrapyard | Discovered new exit (range 15) 66 | -11/Scrapyard | Entered Materials 108 | -10/Materials | Discovered new exit (range 16) 154 | -10/Materials | Entered Mines 299 | -10/Mines | A weapon hastily lodged in a ceiling crevice suddenly fell to the ground 305 | -10/Mines | Build established: Mutant 800 | -10/Mines | Identified exit to Materials 1024 | -10/Mines | Entered Materials 1024 | -9/Materials | Accompanied by 1 ally 1024 | -9/Materials | Evolved 2 slots: Power x1, Propulsion x1 1164 | -9/Materials | Discovered new exit (range 15) 1432 | -9/Materials | Entered Mines 1451 | -9/Mines | Build established: Scavenger-Mutant 1455 | -9/Mines | Identified exit to Materials 1569 | -9/Mines | Assembled infested the area 1570 | -9/Mines | Discovered exit to Materials (range 7) 1571 | -9/Mines | Received a Mining Laser from a helpful Derelict 1601 | -9/Mines | Met 8R-AWN 1629 | -9/Mines | Discovered new exit (range 5) 1634 | -9/Mines | Entered Exiles 1635 | -9/Exiles | Lost 7 parts (2p3n1u1w) 1656 | -9/Exiles | Discovered new exit (range 14) 1674 | -9/Exiles | Entered Mines 1803 | -8/Mines | Core integrity fell below 50% 1842 | -8/Mines | Lost 3 parts (1n1u1w) 1907 | -8/Mines | Build established: Mutant 1971 | -8/Mines | Core integrity fell below 20% 1975 | -8/Mines | Destroyed by L-31 Rogue with Katana Last Messages --------------- Aluminum Leg destroyed. R-06 Scavenger collects Flight Unit. S-10 Pest destroyed. R-06 Scavenger collects Flight Unit. Mak. Sensor Array destroyed. S-10 Pest destroyed. Acquired Lgt. Assault Rifle. Acquired 14 matter. Acquired 3 matter. Acquired Shock Bomb Launcher. K-01 Serf collects debris. X NZ2,8M,R 7R6#6UEZBRRPZL System corrupted: Matter fused (-7). T-07 Excavator is excavating. Slammed into T-07 Excavator. Shock Bomb Launcher destroyed. S-10 Pest destroyed. Slug penetrates Wall. Lgt. Assault Rifle destroyed. Slug penetrates Wall. Map ----- +----------------------------------------------------+ | ??????????????# #??# #??# #?????????????# ### | | ??????????????# #??# #??# #?????????????# #?## | | ??????????????# #??# #??# #???????????### #??## | | ????####??????# #??# #??# #??????????## #???## | | ????# ###???# #??# #### #??????????# #????? | | ????# ##??# #?## #?????????## ##????? | | ????### #### ### ######?????##### #?????? | | ??????## #??????##### #??##?? | | ???????## #??????# ##?# ##? | | ????????# ## ## #??????# ####% ###?# ## | | ????????## ## ### ##??????# #??# ## #??? ? | | ?????????## ## #?## ####????# #??# ##!%##?# ??? | | ??????????# ## #?## # ##???# #??# ## = ## #???? | | ??????????# ## ### #???# #### ## #????? | | ??????????# ## ##### #????? | | ??????????# ##### ###### #????? | | ??????????# ###### ########????## ##????? | | ??????????# ## ##????????????## ##?###?? | | ??????????###### #### ##?????????????## #### ##? | | ???????????????# ## #??????????????# ## #? | | ???????????????### ## #??????????????# #? | | ?????????????????# ## #??????????????## ## | | ??????###????????# ## #???????????????## # | | ?????? ### ## #######??????????## | | ?????????" """ l= ####????????# | | ?????????" """ ##########@ ########## | | ????????????????????????# t | | ????????????????????????# | | ????????????????????????## ########## ## | | ??????????????????????????# ###?????### ##?# | | ???????????????????????????###??????## #??? | | ????????????????????????????????????# ##??? | | ????????????????????????????????????# #???? | | ????????????????????????????????????## #???? | | ?????????????????????????????????????# #???? | | ?????????????????????????????????????## ##???? | | ??????????????????????????????????????#######????? | | ?????????????????????????????????????????????????? | | ?????????????????????????????????????????????????? | | | | | | | | | | | | | | | | | | | | | | | +----------------------------------------------------+ Best States ------------- Heat Dissipation 28 Energy Generation 15 Energy Capacity 250 Matter Stores 300 Matter Capacity 300 Sight Range 16 Robot Scan Range 19 Terrain Scan Range 16 Terrain Scan Density 10 Evasion (%) 55 Recoil Reduction 2 Item Schematics ----------------- None Robot Schematics ------------------ None Fabricated ------------ Nothing Repaired ---------- Nothing Alien Tech Used ----------------- None Achievements -------------- None Challenges ------------ None Game ------ Seed ControlDeliveryProjector Manual? 0 Play Time 00:21:53 Cumulative 26.5 hours Start 2025.09.19 @ 07:29:02 End 2025.09.19 @ 07:55:50 Sessions 1 Manual Loads 0 Difficulty Rogue Special Mode None Game No. 35 Rogue 8 Adventurer 0 Explorer 27 Win Type - Total 0 Types 0/0/0/0/0/0/0/0/0/0 Lore% 17 Gallery% 32 Achievement% 25 Wizard Run 0 Options --------- Layout 2 ASCII 0 Keyboard 0 Movement Mouse Keybinds 0 Fullscreen 2 Font 16/SmallcapsGlow Map View 50x44 Zoom Use 0% Tactical HUD 0 Map Filters NONE Filters NONE Steam X RUN: 4b438a47-a419-42b6-ae87-318c64786634